Cogmind - Beta 17.1 @@@ ROGUE MODE // 2026.09.13 @ 21:23:10 Player: Firely Result: Destroyed by H-77 Assassin with Coil Gun Performance ------------- Evolutions (5) 2500 Regions Visited (18) 3600 Robots Destroyed (79) 395 Value Destroyed (2001) 2001 Prototype IDs (28) 560 Alien Tech Used (0) 0 Bonus (1887) 1887 TOTAL SCORE: 10943 Bonus ------- Follower Combat Kills 312 Aligned with FarCom 300 Met Imprinter 300 Met Warlord at Base 500 MAIN.C Attacked Warlord 500 Friendly Fire -25 Cogmind --------- Core Integrity 0/1000 Matter 300/300 Energy 100/100 System Corruption 0% Temperature Cool (0) Movement Core (50) Location -4/Proximity Caves Parts ------- > --- POWER (2) -------- (None) > --- PROPULSION (5) --- (None) > --- UTILITY (8) ------ Machine Analyzer Enhanced Optical Array Advanced Signal Interpreter Hacking Suite Hacking Suite System Guard > --- WEAPON (2) ------- (None) > --- INVENTORY (5) ---- Improved Heat Sink Advanced Signal Interpreter Improved Reaction Control System Heavy Beamcaster Sapper Charge Peak State ------------ > --- POWER ------------ Light Nuclear Core Neutrino Core > --- PROPULSION ------- Flexi-carbon Leg Armored Leg Armored Wheel Armored Huge Wheel > --- UTILITY ---------- Large Storage Unit Machine Analyzer Enhanced Optical Array Advanced Signal Interpreter Advanced Targeting Computer Hacking Suite Hacking Suite System Guard > --- WEAPON ----------- KE Penetrator Power Sword > --- INVENTORY -------- Micro Fission Core Compact Wheel Linear Gravjet Cooled Nuclear Pulse Thruster Improved Heat Sink Small Storage Unit Structural Scanner Advanced Signal Interpreter ECM Suite Improved Reaction Control System Bore Cannon Tri-rail Accelerator Improved Plasma Cutter [Rating: 74] Favorites ----------- Power Light Nuclear Core Engine Ion Engine Power Core Light Nuclear Core Propulsion Compact Wheel Treads Light Treads Leg Flexi-carbon Leg Wheel Compact Wheel Hover Unit Linear Gravjet Flight Unit Cesium-ion Thruster Utility Hacking Suite Device Structural Scanner Storage Small Storage Unit Processor Machine Analyzer Hackware Hacking Suite Weapon Power Sword Energy Gun Medium Laser Ballistic Gun Assault Rifle Ballistic Cannon Bore Cannon Launcher Rocket Launcher Impact Weapon Hammer Slashing Weapon Power Sword Build | -11 -10 -10 -10 -9 -8 -7 -6 -6 -6 -6 -5 -5 -5 -5 -5 -5 -5 -4 ------- Run | Yrd Mat Min Exi Min Mat Fac Fac Low Low Zio Pro Fac Was Fac Upp Upp War Pro Slots Evolved 10 | . . . . . 4 2 2 . . . . 2 . . . . . . Power 1 | . . . . . . . 1 . . . . . . . . . . . Propulsion 3 | . . . . . 2 . 1 . . . . . . . . . . . Utility 6 | . . . . . 2 2 . . . . . 2 . . . . . . Weapon . | . . . . . . . . . . . . . . . . . . . Parts Attached 77 | 6 18 3 . . 12 8 8 1 . . 1 11 1 2 . 5 . 1 Power 13 | 2 4 . . . 1 . 1 . . . 1 2 . . . 2 . . Engine 6 | 2 3 . . . . . . . . . . . . . . 1 . . Core 7 | . 1 . . . 1 . 1 . . . 1 2 . . . 1 . . Reactor . | . . . . . . . . . . . . . . . . . . . Propulsion 25 | 2 4 . . . 6 1 4 . . . . 4 . 1 . 2 . 1 Treads 4 | 2 2 . . . . . . . . . . . . . . . . . Leg 2 | . . . . . . . . . . . . 2 . . . . . . Wheel 5 | . 2 . . . . . . . . . . 2 . 1 . . . . Hover 2 | . . . . . . . . . . . . . . . . 2 . . Flight 12 | . . . . . 6 1 4 . . . . . . . . . . 1 Utility 23 | 1 5 1 . . 3 5 2 1 . . . 3 1 1 . . . . Device 7 | . . . . . 1 4 . . . . . 2 . . . . . . Storage 6 | 1 4 . . . . . . . . . . . . 1 . . . . Processor 8 | . 1 1 . . 1 1 2 1 . . . . 1 . . . . . Hackware 2 | . . . . . 1 . . . . . . 1 . . . . . . Protection . | . . . . . . . . . . . . . . . . . . . Artifact . | . . . . . . . . . . . . . . . . . . . Weapon 16 | 1 5 2 . . 2 2 1 . . . . 2 . . . 1 . . Energy Gun 1 | 1 . . . . . . . . . . . . . . . . . . Energy Cannon . | . . . . . . . . . . . . . . . . . . . Ballistic Gun 6 | . 4 . . . . 1 . . . . . 1 . . . . . . Ballistic Cannon 1 | . . . . . . . . . . . . 1 . . . . . . Launcher 3 | . . 2 . . 1 . . . . . . . . . . . . . Special Weapon . | . . . . . . . . . . . . . . . . . . . Impact Weapon 3 | . 1 . . . 1 . . . . . . . . . . 1 . . Slashing Weapon 2 | . . . . . . 1 1 . . . . . . . . . . . Piercing Weapon . | . . . . . . . . . . . . . . . . . . . Special Melee Weapon . | . . . . . . . . . . . . . . . . . . . Unidentified Prototypes . | . . . . . . . . . . . . . . . . . . . Parts Lost 26 | . 2 . . . 1 1 . . . . 3 5 . . . 5 . 9 Power 6 | . 1 . . . . . . . . . 1 1 . . . 1 . 2 Propulsion 11 | . . . . . . . . . . . 2 4 . . . 2 . 3 Utility 3 | . . . . . . 1 . . . . . . . . . . . 2 Weapon 6 | . 1 . . . 1 . . . . . . . . . . 2 . 2 Highest Loss Streak 7 | . 1 . . . 1 1 . . . . 2 4 . . . 3 . 7 To Critical Strikes . | . . . . . . . . . . . . . . . . . . . Average Backups 11 | 4 11 19 19 20 8 7 7 8 8 8 7 7 7 9 13 13 7 6 Power 1 | . 1 2 2 2 1 1 . 1 1 1 1 . 1 1 1 2 1 1 Propulsion 3 | 2 6 8 8 8 1 2 1 1 1 1 . 1 1 1 3 2 . . Utility 4 | . 2 5 6 7 4 4 6 6 6 5 5 4 3 4 6 5 5 5 Weapon 1 | 1 2 3 3 3 1 . . . . . 1 1 1 1 2 1 . . Tool/Special . | . . . . . . . . . . . . . . . . . . . Unused Backups 32 | . 10 . 2 . 7 1 4 . . . . 1 . . 1 . 2 4 Power 3 | . 1 . . . . . 1 . . . . . . . . . . 1 Propulsion 7 | . 3 . . . 3 . . . . . . . . . . . 1 . Utility 14 | . 3 . 2 . 2 . 3 . . . . 1 . . . . . 3 Weapon 7 | . 3 . . . 2 1 . . . . . . . . 1 . . . Tool/Special 1 | . . . . . . . . . . . . . . . . . 1 . Average Slot Usage (%) 92 | . 92 100 100 100 95 97 99 100 100 100 97 81 94 93 88 82 82 54 Engine 2 | . 8 . . . 7 . . . . . . . . . . . 5 1 Core 8 | . 3 14 14 14 1 7 12 13 13 13 12 5 11 11 11 9 5 1 Treads 3 | . 17 . . . . . . . . . . . . . . . . . Wheel 9 | . 10 28 28 28 2 . . . . . . 4 11 11 17 12 . . Flight 9 | . . . . . 31 30 33 33 33 33 31 11 . . . . . 1 Device 1 | . . . . . 1 9 6 6 . . . 4 2 . . . . . Storage 8 | . 14 14 14 14 9 7 6 6 6 6 6 5 5 5 5 5 5 5 Processor 19 | . 9 14 14 14 15 18 19 20 26 26 26 23 25 29 29 29 29 25 Hackware 5 | . . . . . 8 7 6 6 6 6 6 11 11 11 11 11 11 11 Energy Gun 1 | . 5 . . . . . . . . . . . . . . . . . Ballistic Gun 8 | . 18 14 14 14 1 . 6 6 6 6 4 1 5 5 5 2 . . Launcher 2 | . . 14 14 14 8 6 . . . . . . . . . . . . Impact Weapon 1 | . 2 . . . 8 1 . . . . . . . . . . 5 1 Slashing Weapon 2 | . . . . . . 5 6 6 6 6 6 4 . 3 . . 5 1 Peak Build Rating 74 | 5 11 12 13 13 22 35 51 54 54 54 54 71 71 74 65 65 61 61 Average Rating 36 | 4 8 11 12 13 17 30 48 51 54 53 52 51 70 71 64 61 60 37 On Entrance 39 | . 5 11 12 13 13 22 34 50 54 54 54 41 71 70 65 64 61 61 Avg Prop Armor Cover (%) 10 | . . . . . . . . . . . . 8 10 12 . . . . Naked Turns . | . . . . . . . . . . . . . . . . . . . Heaviest Build 53 | 12 49 51 51 51 51 28 25 25 24 24 24 40 40 53 53 53 20 20 Greatest Support 56 | 40 40 32 32 32 32 20 25 25 25 25 25 40 40 56 56 56 20 20 Greatest Overweight (x) 6 | . 1 1 1 1 1 1 . . . . 1 1 . 1 . 1 . 6 Average Overweight (x) . | . . 1 1 1 . . . . . . . . . . . . . . Largest Inventory Capacity 25 | 8 25 20 20 20 20 8 8 8 8 8 8 8 8 15 15 15 8 8 Average Capacity 12 | 7 13 20 20 20 9 8 8 8 8 8 8 8 8 10 15 13 8 7 Most Carried 20 | 7 20 20 20 20 20 8 8 8 8 8 8 8 8 14 14 15 8 8 Average Carried 11 | 4 11 19 19 20 8 7 7 8 8 7 7 7 7 9 13 13 7 7 Final Capacity 20 | 8 20 20 20 20 8 8 8 8 8 8 8 8 8 15 15 8 8 5 Final Carried 20 | 7 20 19 20 20 8 8 8 8 8 8 7 8 7 14 14 8 8 5 Class Distribution -------------------- 31% | Mutant 22% | Hacker-Mutant 11% | Sprinter 10% | Scavenger-Scout 6% | Scavenger-Mutant 5% | Hacker-Assassin 4% | Hacker-Skirmisher 4% | Scavenger-Sprinter Dominant Class ---------------- Mutant | -10/Materials Mutant | -10/Mines Mutant | -10/Exiles Mutant | -9/Mines Scavenger-Sprinter | -8/Materials Scavenger-Scout | -7/Factory Scavenger-Scout | -6/Factory Sprinter | -6/Lower Caves Sprinter | -6/Lower Caves Sprinter | -6/Zion Sprinter | -5/Proximity Caves Hacker-Assassin | -5/Factory Hacker-Skirmisher | -5/Waste Hacker-Assassin | -5/Factory Hacker-Mutant | -5/Upper Caves Hacker-Mutant | -5/Upper Caves Hacker-Mutant | -5/Warlord Hacker-Mutant | -4/Proximity Caves Resources | -11 -10 -10 -10 -9 -8 -7 -6 -6 -6 -6 -5 -5 -5 -5 -5 -5 -5 -4 ----------- Run | Yrd Mat Min Exi Min Mat Fac Fac Low Low Zio Pro Fac Was Fac Upp Upp War Pro Matter Collected 2531 | 228 844 20 10 . 231 182 188 48 . 10 66 119 106 62 188 187 32 10 Remotely . | . . . . . . . . . . . . . . . . . . . Salvage Created 2280 | . 972 . . . 244 98 80 . . . 130 89 . 245 280 99 . 43 Parts 121 | . 62 . . . 10 4 4 . . . 8 4 . 7 15 5 . 2 Haulers Intercepted 5 | . 2 . . . 1 . . . . . . . . 2 . . . . Recyclers Shooed . | . . . . . . . . . . . . . . . . . . . Parts Field Recycled . | . . . . . . . . . . . . . . . . . . . Retrieved Matter . | . . . . . . . . . . . . . . . . . . . Parts Self-Destructed 53 | . . . . . . . . . . . 19 . . . 27 6 . 1 Prevented . | . . . . . . . . . . . . . . . . . . . Parts Restored . | . . . . . . . . . . . . . . . . . . . Kills | -11 -10 -10 -10 -9 -8 -7 -6 -6 -6 -6 -5 -5 -5 -5 -5 -5 -5 -4 ------- Run | Yrd Mat Min Exi Min Mat Fac Fac Low Low Zio Pro Fac Was Fac Upp Upp War Pro Combat Hostiles Destroyed 49 | . 19 . . . 10 1 . . . . 5 2 . 1 6 4 . 1 Melee 2 | . . . . . . 1 . . . . 1 . . . . . . . Guns 27 | . 18 . . . . . . . . . 4 . . . 3 2 . . Cannons 8 | . . . . . . . . . . . . 2 . 1 3 2 . . AOE 12 | . 1 . . . 10 . . . . . . . . . . . . 1 Classes Destroyed 14 | . 9 . . . 1 1 . . . . . . . . 3 . . . Worker 4 | . 4 . . . . . . . . . . . . . . . . . Builder 5 | . 3 . . . . 1 1 . . . . . . . . . . . Tunneler 1 | . . . . . 1 . . . . . . . . . . . . . Hauler 5 | . 2 . . . 1 . . . . . . . . 2 . . . . Recycler 3 | . 2 . . . 1 . . . . . . . . . . . . . Mechanic 1 | . 1 . . . . . . . . . . . . . . . . . Operator 3 | . 3 . . . . . . . . . . . . . . . . . Watcher 8 | . 3 . . . 2 1 2 . . . . . . . . . . . Swarmer 26 | . 9 . . . 7 . . . . . 5 . . . 2 3 . . Grunt 13 | . 10 . . . 3 . . . . . . . . . . . . . Duelist 1 | . . . . . . . . . . . . . . . 1 . . . Sentry 1 | . . . . . . . . . . . . . . . 1 . . . Hunter 3 | . . . . . . . . . . . . . . . 2 1 . . Programmer 5 | . . . . . . 1 . . . . . 2 . 1 . . . 1 Best Kill Streak 9 | . 5 . . . 9 1 1 . . . 3 2 . 1 3 3 . 1 Combat Bots Only 7 | . 4 . . . 7 1 . . . . 3 2 . 1 3 3 . 1 Max Kills in Single Turn 4 | . 3 . . . 4 1 1 . . . 1 1 . 1 1 1 . 1 Gunslinging . | . . . . . . . . . . . . . . . . . . . Exploded 3 | . 1 . . . 3 . . . . . . . . . . . . 1 Melee 1 | . . . . . . 1 . . . . 1 . . . . . . . Uniques/NPCs Destroyed . | . . . . . . . . . . . . . . . . . . . Combat | -11 -10 -10 -10 -9 -8 -7 -6 -6 -6 -6 -5 -5 -5 -5 -5 -5 -5 -4 -------- Run | Yrd Mat Min Exi Min Mat Fac Fac Low Low Zio Pro Fac Was Fac Upp Upp War Pro Hostile Shots Fired 321 | . 87 . . . 16 13 . 1 . . 37 15 . 3 20 50 . 79 Missed 99 | . 21 . . . 7 3 . . . . 17 3 . 2 5 19 . 22 Hits 222 | . 66 . . . 9 10 . 1 . . 20 12 . 1 15 31 . 57 Projectile 222 | . 66 . . . 9 10 . 1 . . 20 12 . 1 15 31 . 57 Critical Strikes 5 | . . . . . . . . . . . . 1 . . 1 1 . 2 Part Disruptions 1 | . . . . . . . . . . . . 1 . . . . . . Damage Taken 4070 | . 824 . . . 130 220 . 20 . . 349 461 . 28 284 530 . 1224 Core 1308 | . 160 . . . . 59 . . . . 85 156 . . 36 114 . 698 Absorbed by Shields . | . . . . . . . . . . . . . . . . . . . Regen/Repaired (Parts) 117 | . . . . . . . . . . . . . . 47 70 . . . Core Remaining (%) 83 | 100 . . . 36 100 91 . . . . 90 . . . . . . . Volleys Fired 188 | . 76 . . . 17 . 17 7 . . 14 8 . 2 24 23 . . Largest 2 | . 2 . . . 1 . 1 1 . . 1 2 . 2 2 2 . . Hottest 81 | . 70 . . . 36 . 28 28 . . 28 81 . 81 81 81 . . Shots Fired 285 | . 145 . . . 17 . 17 7 . . 14 16 . 4 35 30 . . Gun 224 | . 145 . . . . . 17 7 . . 14 8 . 2 19 12 . . Cannon 44 | . . . . . . . . . . . . 8 . 2 16 18 . . Launcher 17 | . . . . . 17 . . . . . . . . . . . . . Special . | . . . . . . . . . . . . . . . . . . . Kinetic 234 | . 111 . . . . . 17 7 . . 14 16 . 4 35 30 . . Thermal 34 | . 34 . . . . . . . . . . . . . . . . . Explosive 17 | . . . . . 17 . . . . . . . . . . . . . Electromagnetic . | . . . . . . . . . . . . . . . . . . . Robot Hit Streak 13 | . 9 . . . 5 . 8 8 . . 11 4 . 1 13 7 . . Robot Miss Streak 5 | . 4 . . . . . 2 . . . 1 3 . 3 3 5 . . Penetration Max 1 | . . . . . . . . . . . . 1 . . 1 1 . . Secondary Targets 1 | . 1 . . . . . . . . . . . . . . . . . Max Gunslinging Chain 1 | . 1 . . . . . . . . . . . . . . . . . Shots Hit Robots 218 | . 108 . . . 10 8 16 7 . . 13 10 . 4 23 17 . 2 Core Hits 110 | . 49 . . . 23 2 3 4 . . 4 3 . 3 12 7 . . Critical Kills 9 | . 1 . . . . . . . . . . 1 . 1 4 2 . . Critical Parts Destroyed 15 | . 2 . . . . . . . . . . 2 . . 6 5 . . Critical Strikes 30 | . 7 . . . . . . . . . . 3 . 2 11 7 . . Burn 4 | . 4 . . . . . . . . . . . . . . . . . Destroy 22 | . . . . . . . . . . . . 3 . 1 11 7 . . Smash 3 | . 3 . . . . . . . . . . . . . . . . . Sever 1 | . . . . . . . . . . . . . . 1 . . . . Melee Attacks 98 | . 12 . . . 20 27 26 . . . 1 3 . 6 . 1 . 2 Impact 42 | . 12 . . . 20 10 . . . . . . . . . . . . Slashing 56 | . . . . . . 17 26 . . . 1 3 . 6 . 1 . 2 Piercing . | . . . . . . . . . . . . . . . . . . . Sneak Attacks 18 | . 9 . . . 3 1 2 . . . 1 . . 2 . . . . Combat Hostiles 1 | . . . . . . . . . . . 1 . . . . . . . Follow-up Attacks . | . . . . . . . . . . . . . . . . . . . Damage Inflicted 6305 | . 1878 . . . 1365 350 517 116 . . 297 380 . 242 703 378 . 79 Guns 2542 | . 1114 . . . . . 233 116 . . 235 212 . . 468 164 . . Cannons 653 | . . . . . . . . . . . . 168 . 36 235 214 . . Explosions 1392 | . 316 . . . 1076 . . . . . . . . . . . . . Melee 1708 | . 444 . . . 289 350 284 . . . 62 . . 206 . . . 73 Ramming 10 | . 4 . . . . . . . . . . . . . . . . 6 Kinetic 2856 | . 775 . . . . . 233 116 . . 235 380 . 36 703 378 . . Thermal 339 | . 339 . . . . . . . . . . . . . . . . . Explosive 1392 | . 316 . . . 1076 . . . . . . . . . . . . . Electromagnetic . | . . . . . . . . . . . . . . . . . . . Impact 733 | . 444 . . . 289 . . . . . . . . . . . . . Slashing 975 | . . . . . . 350 284 . . . 62 . . 206 . . . 73 Piercing . | . . . . . . . . . . . . . . . . . . . Highest Corruption 8 | . . . . . . 8 . . . . . 7 7 . . . . . Average Corruption 5 | . . . . . . 6 . . . . . 2 5 . . . . . Corruption Purged 4 | . . . . . . . . . . . . . 4 . . . . . Corruption Blocked . | . . . . . . . . . . . . . . . . . . . Effects 21 | . . . . . . 14 . . . . . 4 3 . . . . . Message Errors 3 | . . . . . . 2 . . . . . 1 . . . . . . Matter Fused 4 | . . . . . . 2 . . . . . 1 1 . . . . . Heat Flow Errors 1 | . . . . . . 1 . . . . . . . . . . . . Energy Discharges 5 | . . . . . . 5 . . . . . . . . . . . . Parts Fused 1 | . . . . . . 1 . . . . . . . . . . . . Data Loss (minor) 4 | . . . . . . 2 . . . . . 1 1 . . . . . Data Loss (major) 2 | . . . . . . 1 . . . . . 1 . . . . . . Alerts 1 | . . . . . . . . . . . . . 1 . . . . . Overload Shots . | . . . . . . . . . . . . . . . . . . . Overflow Damage 604 | . 311 . . . 117 81 54 . . . 37 4 . . . . . . Projectiles 4 | . . . . . . . . . . . . 4 . . . . . . Explosions 153 | . 105 . . . 48 . . . . . . . . . . . . . Melee 447 | . 206 . . . 69 81 54 . . . 37 . . . . . . . Knockbacks 8 | . 2 . . . . . . . . . . . . . . 5 . 1 Impact 3 | . 2 . . . . . . . . . . . . . . . . 1 Kinetic 5 | . . . . . . . . . . . . . . . . 5 . . Secondary . | . . . . . . . . . . . . . . . . . . . Self-Inflicted Damage 209 | . 184 . . . 22 . . . . . . . . . . . . 3 Shots 3 | . 2 . . . 1 . . . . . . . . . . . . . Rammed 5 | . 3 . . . . . . . . . . . . . . . . 2 Targets Rammed 5 | . 3 . . . . . . . . . . . . . . . . 2 Kicked . | . . . . . . . . . . . . . . . . . . . Crushed . | . . . . . . . . . . . . . . . . . . . Highest Temperature 144 | . 141 . . . 3 105 144 86 58 107 63 48 . 12 69 30 . 20 Average Temperature 25 | . 39 . . . 3 59 27 21 16 27 15 24 . 7 22 16 . 15 Received Heat Transfer 463 | . 240 . . . 18 . . 9 . . 27 . . . 130 9 . 30 Siege Activations . | . . . . . . . . . . . . . . . . . . . Martial Activations . | . . . . . . . . . . . . . . . . . . . Shielding Activations . | . . . . . . . . . . . . . . . . . . . Robots Disrupted . | . . . . . . . . . . . . . . . . . . . Combat Hostiles . | . . . . . . . . . . . . . . . . . . . Robots Corrupted 7 | . 5 . . . 2 . . . . . . . . . . . . . Combat Hostiles . | . . . . . . . . . . . . . . . . . . . Parts Fried 15 | . 12 . . . 3 . . . . . . . . . . . . . Impact Corruptions 15 | . 11 . . . 4 . . . . . . . . . . . . . Robots Melted . | . . . . . . . . . . . . . . . . . . . Combat Hostiles . | . . . . . . . . . . . . . . . . . . . Parts Melted 5 | . 4 . . . . . . . . . . . . . . . . 1 Heat Transferred 1295 | . 1295 . . . . . . . . . . . . . . . . . Parts Sabotaged . | . . . . . . . . . . . . . . . . . . . Parts Stolen . | . . . . . . . . . . . . . . . . . . . Parts Stripped . | . . . . . . . . . . . . . . . . . . . Power Chain Reactions . | . . . . . . . . . . . . . . . . . . . Alert | -11 -10 -10 -10 -9 -8 -7 -6 -6 -6 -6 -5 -5 -5 -5 -5 -5 -5 -4 ------- Run | Yrd Mat Min Exi Min Mat Fac Fac Low Low Zio Pro Fac Was Fac Upp Upp War Pro Maximum Alert Level 1 | . 1 . . . 1 . . . . . . . . 1 . . . . Low Security (%) 73 | 100 43 100 . 100 62 100 100 . . . . 100 100 50 . . . . Level 1 26 | . 56 . . . 37 . . . . . . . . 49 . . . . Level 2 . | . . . . . . . . . . . . . . . . . . . Level 3 . | . . . . . . . . . . . . . . . . . . . Level 4 . | . . . . . . . . . . . . . . . . . . . Level 5 . | . . . . . . . . . . . . . . . . . . . High Security . | . . . . . . . . . . . . . . . . . . . Max Security . | . . . . . . . . . . . . . . . . . . . Peak Influence 377 | . 300 78 . . 377 166 53 . . . . 158 12 339 . . . . Initial 166 | . . 78 . . . 166 . . . . . 158 12 . . . . . Average 89 | . 152 9 . . 140 61 11 . . . . 54 1 157 . . . . Influence Increases 3413 | . 704 . . . 485 112 177 120 . . 601 82 . 543 334 175 . 80 Destroy 0b10 Robot/C 1340 | . 380 . . . 200 20 . . . . 240 40 . 220 140 80 . 20 Destroy 0b10 Robot/NC 150 | . 90 . . . 25 10 15 . . . . . . 10 . . . . Destroy Leader 246 | . 100 . . . 36 12 4 . . . 10 10 . 44 10 20 . . Allied During Kill 314 | . . . . . . 1 . . . . 96 . . 198 19 . . . Successful Hack 46 | . . . . . 17 . 17 . . . . 7 . 5 . . . . Disable Machine 135 | . 30 . . . 60 . . . . . . 15 . 30 . . . . Destroy Structure 237 | . 44 . . . 117 9 21 . . . . 10 . 36 . . . . Partial Spotted 75 | . . . . . 15 . 60 . . . . . . . . . . . Lose Combat Pursuer 870 | . 60 . . . 15 60 60 120 . . 255 . . . 165 75 . 60 Influence Decreases 3413 | . 503 201 . . 118 479 170 112 15 . 348 300 35 404 453 152 43 80 Entered New Map 549 | . . 123 . . . 201 . 4 4 . . 95 23 . 52 4 43 . Time Decay 2157 | . 483 78 . . 108 181 170 108 11 . 198 155 12 174 321 118 . 40 Lost Part 190 | . 20 . . . 10 10 . . . . 30 50 . . . 30 . 40 Lost Ally 445 | . . . . . . 15 . . . . 120 . . 230 80 . . . Purge Threat 72 | . . . . . . 72 . . . . . . . . . . . . Squads Dispatched 15 | . 5 . . . 1 4 4 . . . . 1 . . . . . . Investigation 4 | . 2 . . . . 2 . . . . . . . . . . . . Extermination 5 | . . . . . . 2 2 . . . . 1 . . . . . . Reinforcement 5 | . 3 . . . . . 2 . . . . . . . . . . . Assault . | . . . . . . . . . . . . . . . . . . . Garrison 1 | . . . . . 1 . . . . . . . . . . . . . Intercept . | . . . . . . . . . . . . . . . . . . . Searches Triggered . | . . . . . . . . . . . . . . . . . . . Construction Impeded . | . . . . . . . . . . . . . . . . . . . Haulers Reinforced . | . . . . . . . . . . . . . . . . . . . Active Scanning Responses . | . . . . . . . . . . . . . . . . . . . Cargo Convoy Interrupts . | . . . . . . . . . . . . . . . . . . . Stealth | -11 -10 -10 -10 -9 -8 -7 -6 -6 -6 -6 -5 -5 -5 -5 -5 -5 -5 -4 --------- Run | Yrd Mat Min Exi Min Mat Fac Fac Low Low Zio Pro Fac Was Fac Upp Upp War Pro Distress Signals 8 | . 3 . . . 1 . 1 . . . . . . 3 . . . . Communications Jammed . | . . . . . . . . . . . . . . . . . . . Distress Signals . | . . . . . . . . . . . . . . . . . . . Times Spotted 148 | . 41 . . . 8 11 5 5 . . 24 2 . 4 23 12 . 13 Peak Tracking Total 9 | . 5 . . . 4 3 4 3 . . 9 2 . 2 7 5 . 8 Tactical Retreats 26 | . 3 . . . 1 3 2 5 . . 4 . . . 4 3 . 1 Traps | -11 -10 -10 -10 -9 -8 -7 -6 -6 -6 -6 -5 -5 -5 -5 -5 -5 -5 -4 ------- Run | Yrd Mat Min Exi Min Mat Fac Fac Low Low Zio Pro Fac Was Fac Upp Upp War Pro Traps Triggered 10 | . 4 . . . . 4 . . . . . 2 . . . . . . Indirectly . | . . . . . . . . . . . . . . . . . . . Trap Hack Attempts . | . . . . . . . . . . . . . . . . . . . Triggered . | . . . . . . . . . . . . . . . . . . . Disarmed . | . . . . . . . . . . . . . . . . . . . Reprogrammed . | . . . . . . . . . . . . . . . . . . . Reused . | . . . . . . . . . . . . . . . . . . . Traps Extracted . | . . . . . . . . . . . . . . . . . . . Installed . | . . . . . . . . . . . . . . . . . . . Triggered . | . . . . . . . . . . . . . . . . . . . Time Bombs Activated 1 | . . . . . . . . . . . . . . . . . . 1 Exploded 1 | . . . . . . . . . . . . . . . . . . 1 Machines | -11 -10 -10 -10 -9 -8 -7 -6 -6 -6 -6 -5 -5 -5 -5 -5 -5 -5 -4 ---------- Run | Yrd Mat Min Exi Min Mat Fac Fac Low Low Zio Pro Fac Was Fac Upp Upp War Pro Machines Disabled 9 | . 2 . . . 4 . . . . . . 1 . 2 . . . . Max in Single Turn 2 | . 1 . . . 2 . . . . . . 1 . . . . . . Garrison Access 3 | . . . . . . 1 . . . . . 1 . 1 . . . . Machines Repaired . | . . . . . . . . . . . . . . . . . . . Machines Dismantled . | . . . . . . . . . . . . . . . . . . . Machines Sabotaged . | . . . . . . . . . . . . . . . . . . . Overloaded Fab Kills . | . . . . . . . . . . . . . . . . . . . Hacking | -11 -10 -10 -10 -9 -8 -7 -6 -6 -6 -6 -5 -5 -5 -5 -5 -5 -5 -4 --------- Run | Yrd Mat Min Exi Min Mat Fac Fac Low Low Zio Pro Fac Was Fac Upp Upp War Pro Machines Accessed 52 | . 4 1 5 . 7 5 4 1 . 1 . 7 . 6 2 . 9 . Terminals 20 | . 4 . . . 4 1 4 . . . . 4 . 3 . . . . Fabricators 1 | . . . . . . . . . . . . . . 1 . . . . Repair Stations 2 | . . . . . 1 . . . . . . 1 . . . . . . Recycling Units 6 | . . . . . 1 3 . . . . . 1 . 1 . . . . Scanalyzers 1 | . . . . . 1 . . . . . . . . . . . . . Garrison Access 3 | . . . . . . 1 . . . . . 1 . 1 . . . . Total Hacks 126 | . 6 1 9 . 20 14 13 1 . 1 . 16 . 14 5 . 26 . Successful 95 | . 2 1 9 . 16 7 5 1 . 1 . 10 . 12 5 . 26 . Failed 31 | . 4 . . . 4 7 8 . . . . 6 . 2 . . . . Catastrophic 3 | . . . . . . . 2 . . . . 1 . . . . . . Database Lockouts . | . . . . . . . . . . . . . . . . . . . Manual 3 | . . . 1 . . . . . . 1 . . . . . . 1 . Terminals 56 | . 6 . . . 13 3 13 . . . . 12 . 9 . . . . Fabricators 1 | . . . . . . . . . . . . . . 1 . . . . Repair Stations 2 | . . . . . 1 . . . . . . 1 . . . . . . Recycling Units 15 | . . . . . 1 10 . . . . . 1 . 3 . . . . Scanalyzers 5 | . . . . . 5 . . . . . . . . . . . . . Garrison Access 4 | . . . . . . 1 . . . . . 2 . 1 . . . . Terminal Hacks 77 | . 2 1 9 . 10 1 5 1 . 1 . 9 . 7 5 . 26 . Record 45 | . . . 8 . 2 . 1 . . . . 4 . 2 4 . 24 . Part Schematic 1 | . . . . . . . . . . 1 . . . . . . . . Prototype ID Bank 1 | . . . . . 1 . . . . . . . . . . . . . Open Door 5 | . . 1 . . . . . 1 . . . . . . 1 . 2 . Branch Access Points 3 | . . . . . 1 . 1 . . . . . . 1 . . . . Emergency Access Points 1 | . . . . . . . . . . . . . . 1 . . . . Machine Index 1 | . . . . . . . . . . . . . . 1 . . . . Alert Level 7 | . 1 . . . 2 . 1 . . . . 2 . 1 . . . . Unreport Threat 1 | . . . . . . 1 . . . . . . . . . . . . Dispatch Records 3 | . . . . . 1 . 1 . . . . . . 1 . . . . Patrol Status 2 | . . . . . 1 . . . . . . 1 . . . . . . Transport Status 1 | . . . . . . . . . . . . 1 . . . . . . Reinforcement Status 1 | . . . . . . . 1 . . . . . . . . . . . Hauler Manifests 3 | . 1 . . . 1 . . . . . . 1 . . . . . . Registered Components 1 | . . . . . 1 . . . . . . . . . . . . . Proto ID Catalog 1 | . . . 1 . . . . . . . . . . . . . . . Fabricator Hacks 1 | . . . . . . . . . . . . . . 1 . . . . Network Status 1 | . . . . . . . . . . . . . . 1 . . . . Repair Station Hacks . | . . . . . . . . . . . . . . . . . . . Recycling Unit Hacks 9 | . . . . . 1 5 . . . . . . . 3 . . . . Process 1 | . . . . . . . . . . . . . . 1 . . . . Report Inventory 7 | . . . . . 1 5 . . . . . . . 1 . . . . Retrieve Matter 1 | . . . . . . . . . . . . . . 1 . . . . Scanalyzer 5 | . . . . . 5 . . . . . . . . . . . . . Insert Component 1 | . . . . . 1 . . . . . . . . . . . . . Retrieve Study 4 | . . . . . 4 . . . . . . . . . . . . . Garrison Access Hacks 3 | . . . . . . 1 . . . . . 1 . 1 . . . . Seal Access 3 | . . . . . . 1 . . . . . 1 . 1 . . . . Unauthorized Hacks . | . . . . . . . . . . . . . . . . . . . Terminals . | . . . . . . . . . . . . . . . . . . . Fabricators . | . . . . . . . . . . . . . . . . . . . Repair Stations . | . . . . . . . . . . . . . . . . . . . Recycling Units . | . . . . . . . . . . . . . . . . . . . Scanalyzers . | . . . . . . . . . . . . . . . . . . . Garrison Access . | . . . . . . . . . . . . . . . . . . . Data Cores Recovered . | . . . . . . . . . . . . . . . . . . . Used . | . . . . . . . . . . . . . . . . . . . Hacking Detections 26 | . 2 . . . 6 4 4 . . . . 6 . 4 . . . . Full Trace Events 2 | . . . . . . 2 . . . . . . . . . . . . Feedback Events 1 | . . . . . . 1 . . . . . . . . . . . . Corruption 1 | . . . . . . 1 . . . . . . . . . . . . Feedback Blocked . | . . . . . . . . . . . . . . . . . . . Robot Schematics Acquired . | . . . . . . . . . . . . . . . . . . . Robots Built . | . . . . . . . . . . . . . . . . . . . Authchips . | . . . . . . . . . . . . . . . . . . . Time . | . . . . . . . . . . . . . . . . . . . Total Robot Build Rating . | . . . . . . . . . . . . . . . . . . . Part Schematics Acquired 1 | . . . . . . . . . . 1 . . . . . . . . Parts Built . | . . . . . . . . . . . . . . . . . . . Authchips . | . . . . . . . . . . . . . . . . . . . Time . | . . . . . . . . . . . . . . . . . . . Total Part Build Rating . | . . . . . . . . . . . . . . . . . . . Part Studies Acquired 4 | . . . . . 4 . . . . . . . . . . . . . Parts Repaired . | . . . . . . . . . . . . . . . . . . . Time . | . . . . . . . . . . . . . . . . . . . Parts Recycled . | . . . . . . . . . . . . . . . . . . . Recycled Matter 20 | . . . . . . . . . . . . . . 20 . . . . Retrieved Matter 20 | . . . . . . . . . . . . . . 20 . . . . Retrieved Components . | . . . . . . . . . . . . . . . . . . . Parts Scanalyzed . | . . . . . . . . . . . . . . . . . . . Part Schematics Acquired . | . . . . . . . . . . . . . . . . . . . Parts Damaged . | . . . . . . . . . . . . . . . . . . . Bothacking | -11 -10 -10 -10 -9 -8 -7 -6 -6 -6 -6 -5 -5 -5 -5 -5 -5 -5 -4 ------------ Run | Yrd Mat Min Exi Min Mat Fac Fac Low Low Zio Pro Fac Was Fac Upp Upp War Pro Used RIF Installer . | . . . . . . . . . . . . . . . . . . . Robots Hacked . | . . . . . . . . . . . . . . . . . . . Non-combat . | . . . . . . . . . . . . . . . . . . . Combat . | . . . . . . . . . . . . . . . . . . . Robot Hacks Applied . | . . . . . . . . . . . . . . . . . . . Relay Couplers Released . | . . . . . . . . . . . . . . . . . . . Fabnet Peak Effective % . | . . . . . . . . . . . . . . . . . . . Robots Rewired . | . . . . . . . . . . . . . . . . . . . Allies Hacked . | . . . . . . . . . . . . . . . . . . . Hacks Repelled . | . . . . . . . . . . . . . . . . . . . Allies | -11 -10 -10 -10 -9 -8 -7 -6 -6 -6 -6 -5 -5 -5 -5 -5 -5 -5 -4 -------- Run | Yrd Mat Min Exi Min Mat Fac Fac Low Low Zio Pro Fac Was Fac Upp Upp War Pro Total Allies 31 | . . . . . . 2 . . . 6 . . 20 . 3 . . . Largest Group 20 | . . . . . . 1 . . . 6 6 . 20 20 5 . . . Highest-Rated Group 666 | . . . . . . 32 . . . 129 129 . 666 666 147 . . . Highest-Rated Ally 50 | . . . . . . 32 . . . 31 31 . 50 50 31 . . . Total Orders 6 | . . . . . . 6 . . . . . . . . . . . . ROAM 5 | . . . . . . 5 . . . . . . . . . . . . EXPLORE 1 | . . . . . . 1 . . . . . . . . . . . . Ally Attacks 164 | . . . . . . 27 . . . . 48 . . 72 17 . . . Total Damage 3136 | . . . . . . 132 . . . . 512 . . 2200 292 . . . Kills 24 | . . . . . . 1 . . . . 7 . . 15 1 . . . Allies Corrupted . | . . . . . . . . . . . . . . . . . . . Allies Melted . | . . . . . . . . . . . . . . . . . . . Intel | -11 -10 -10 -10 -9 -8 -7 -6 -6 -6 -6 -5 -5 -5 -5 -5 -5 -5 -4 ------- Run | Yrd Mat Min Exi Min Mat Fac Fac Low Low Zio Pro Fac Was Fac Upp Upp War Pro Active Infowar (turns) 7835 | . 1418 255 . . 262 595 588 312 116 403 403 471 256 464 941 496 638 217 Optics 5900 | . . . . . . 595 588 312 116 403 403 471 256 464 941 496 638 217 Terrain 525 | . . . . . . 240 20 265 . . . . . . . . . . Structural 1237 | . . . . . . 356 588 45 . . . 248 . . . . . . T.N.C. 1673 | . 1418 255 . . . . . . . . . . . . . . . . Machine Analysis 6162 | . . . . . 262 595 588 312 116 403 403 471 256 464 941 496 638 217 ECM 159 | . . . . . . . . . . . . 159 . . . . . . Robot Analysis Total . | . . . . . . . . . . . . . . . . . . . Derelict Logs Recovered 10 | . . 3 . 1 . . . . 1 1 1 . . . . 2 . 1 Drone Launches 27 | . . . . . . 27 . . . . . . . . . . . . Drone Recoveries 24 | . . . . . . 24 . . . . . . . . . . . . Exploration | -11 -10 -10 -10 -9 -8 -7 -6 -6 -6 -6 -5 -5 -5 -5 -5 -5 -5 -4 ------------- Run | Yrd Mat Min Exi Min Mat Fac Fac Low Low Zio Pro Fac Was Fac Upp Upp War Pro Turns Passed 10068 | 99 2108 689 735 184 353 595 588 312 116 403 403 471 256 464 941 496 638 217 Spaces Moved 12655 | 57 1218 555 636 151 644 1138 1515 617 363 861 603 772 241 420 776 491 1323 274 Core 104 | 6 . . . . . . . . . . . . . . . . . 98 Treads 669 | 51 618 . . . . . . . . . . . . . . . . . Legs 22 | . . . . . . . . . . . . 22 . . . . . . Wheels 3930 | . 600 555 636 151 23 . . . . . . 184 241 420 776 344 . . Hover 1553 | . . . . . . . . . . . . . . . . 147 1323 83 Flight 6377 | . . . . . 621 1138 1515 617 363 861 603 566 . . . . . 93 Fastest Speed 24 | 50 115 115 115 115 31 29 24 24 24 24 24 28 95 95 96 46 46 40 Average Speed 61 | 148 137 115 115 115 34 30 24 24 24 24 25 49 95 99 96 84 46 68 Slowest Speed 350 | 160 160 115 115 115 115 109 27 24 24 24 104 120 95 110 96 115 46 350 Overloaded Moves . | . . . . . . . . . . . . . . . . . . . Propulsion Burnouts . | . . . . . . . . . . . . . . . . . . . Robots Hopped 14 | . . . . . 1 4 7 . . . . 2 . . . . . . Potential Cave-ins . | . . . . . . . . . . . . . . . . . . . Cave-ins Triggered . | . . . . . . . . . . . . . . . . . . . Exploration Rate (%) 57 | 4 94 82 92 22 44 23 40 60 53 88 86 20 95 10 69 69 97 51 Regions Visited 18 Branch Regions 11 Pre-discovered Areas 4 | . . 1 . 1 . . . . . 1 . . . . . . . 1 Known Exits Taken 13 | . . 1 1 1 1 . 1 1 1 1 1 . . 1 1 1 1 . Unknown Exits Taken 3 | 1 1 . . . . 1 . . . . . . . . . . . . Scrap Searched 17 | . . 2 . 1 . . . 3 1 4 2 . . . 1 1 . 2 Spaces Dug 46 | . . . . . 10 9 21 . . . . 3 . 2 . 1 . . Terrain Destroyed 224 | . 49 . . . 122 9 21 . . . . 7 . 4 2 10 . . Melee 46 | . . . . . 10 9 21 . . . . 3 . 2 . 1 . . Projectile 17 | . . . . . . . . . . . . 4 . 2 2 9 . . AOE 161 | . 49 . . . 112 . . . . . . . . . . . . . Terrain Rammed . | . . . . . . . . . . . . . . . . . . . Walls Destroyed . | . . . . . . . . . . . . . . . . . . . Machines Disabled . | . . . . . . . . . . . . . . . . . . . Actions | -11 -10 -10 -10 -9 -8 -7 -6 -6 -6 -6 -5 -5 -5 -5 -5 -5 -5 -4 --------- Run | Yrd Mat Min Exi Min Mat Fac Fac Low Low Zio Pro Fac Was Fac Upp Upp War Pro Total 14437 | 69 1493 605 640 161 729 1330 1671 771 391 1057 836 835 267 452 937 542 1352 299 Wait 1268 | . 114 43 . 11 15 147 95 145 29 195 213 34 25 11 135 14 26 16 Move 12611 | 56 1217 554 635 150 641 1129 1501 616 362 860 602 768 240 419 775 490 1322 274 Hop 13 | . . . . . 1 4 6 . . . . 2 . . . . . . Pick Up 77 | 7 24 2 3 . 5 6 7 . . 1 1 6 . 7 2 2 2 2 Fast Attach 27 | 5 10 1 . . 2 2 1 . . . . 5 . . . 1 . . Attach 26 | . . . . . 7 5 2 . . . 1 4 1 1 . 4 . 1 Detach 4 | . 2 . . . . 2 . . . . . . . . . . . . Swap 43 | 1 13 2 . . 5 2 7 3 . . 1 4 . 3 . 2 . . Drop 75 | . 22 3 2 . 16 6 9 . . 1 3 1 . 3 1 5 2 1 Fire 188 | . 76 . . . 17 . 17 7 . . 14 8 . 2 24 23 . . Melee 98 | . 12 . . . 20 27 26 . . . 1 3 . 6 . 1 . 2 Ram 2 | . . . . . . . . . . . . . . . . . . 2 Kick . | . . . . . . . . . . . . . . . . . . . Crush 3 | . 3 . . . . . . . . . . . . . . . . . Escape Stasis . | . . . . . . . . . . . . . . . . . . . Rewire 1 | . . . . . . . . . . . . . 1 . . . . . Trap 1 | . . . . . . . . . . . . . . . . . . 1 Miscellaneous . | . . . . . . . . . . . . . . . . . . . Route ------- -11/Scrapyard -10/Materials (discovered 4 exits: *Mat x3 / *Min) -10/Mines (discovered 4 exits: *Mat x2 / *Exi / *Sub) -10/Exiles (discovered 2 exits: *Min x2) -9/Mines -8/Materials -7/Factory -6/Factory (discovered 6 exits: *Fac x2 / *Low x2 / Ext x2) -6/Lower Caves -6/Lower Caves (discovered 2 exits: *Fac / *Zio) -6/Zion -5/Proximity Caves -5/Factory -5/Waste -5/Factory (discovered 2 exits: *Upp x2) -5/Upper Caves -5/Upper Caves (discovered 2 exits: *Fac / *War) -5/Warlord -4/Proximity Caves History --------- Turn | Location | Event 11 | -11/Scrapyard | Discovered new exit (range 15) 100 | -11/Scrapyard | Entered Materials 316 | -10/Materials | Build established: Mutant 601 | -10/Materials | Discovered new exit (range 15) 779 | -10/Materials | Discovered new exit (range 10) 975 | -10/Materials | Core integrity fell below 50% 1081 | -10/Materials | Discovered new exit (range 13) 1094 | -10/Materials | Build established: Scavenger-Mutant 1739 | -10/Materials | Build established: Mutant 2071 | -10/Materials | Discovered new exit (range 13) 2208 | -10/Materials | Entered Mines 2349 | -10/Mines | Learned location of Zion (-6) 2431 | -10/Mines | Discovered new exit (range 9) 2485 | -10/Mines | Identified exit to Materials 2602 | -10/Mines | Found a hidden stash of uninstalled traps 2664 | -10/Mines | Found the Drone Emporium 2674 | -10/Mines | Found Prototype Device 2680 | -10/Mines | Discovered new exit (range 14) 2693 | -10/Mines | Identified exit to Subcaves 2829 | -10/Mines | Received a Rocket Launcher from a helpful Derelict 2851 | -10/Mines | Deemed a non-threat by the Exiles lab entrance 2852 | -10/Mines | Discovered new exit (range 5) 2855 | -10/Mines | Identified exit to Exiles 2871 | -10/Mines | Discovered exit to Materials (range 9) 2897 | -10/Mines | Entered Exiles 2915 | -10/Exiles | Discovered new exit (range 15) 2929 | -10/Exiles | Identified exit to Mines 2953 | -10/Exiles | Met 8R-AWN 2973 | -10/Exiles | Met EX-HEX 3025 | -10/Exiles | Met EX-BIN 3045 | -10/Exiles | Aligned with FarCom system 3046 | -10/Exiles | Given EX-Vault access code 3110 | -10/Exiles | Opened EX-Vault 3123 | -10/Exiles | Found Superbattery 3147 | -10/Exiles | Warned to stay clear of 0b10 Research branches 3180 | -10/Exiles | Met EX-DEC 3282 | -10/Exiles | Discovered exit to Mines (range 14) 3397 | -10/Exiles | Visited The Gauntlet 3632 | -10/Exiles | Left Exiles lab with Superbattery 3632 | -10/Exiles | Entered Mines 3799 | -9/Mines | Discovered new exit (range 5) 3807 | -9/Mines | Identified exit to Materials 3816 | -9/Mines | Entered Materials 3816 | -8/Materials | Evolved 4 slots: Propulsion x2, Utility x2 3894 | -8/Materials | Identified Splice Drone Bay 4073 | -8/Materials | Destroyed 7 combat bots 4077 | -8/Materials | Garrison activated, responded to threat 4144 | -8/Materials | Build established: Scavenger-Sprinter 4159 | -8/Materials | Discovered new exit (range 9) 4161 | -8/Materials | Identified exit to Factory 4169 | -8/Materials | Entered Factory 4169 | -7/Factory | Evolved 2 slots: Utility x2 4450 | -7/Factory | Build established: Scavenger-Scout 4625 | -7/Factory | Lost 3 allies 4692 | -7/Factory | Discovered new exit (range 7) 4764 | -7/Factory | Entered another Factory area 4764 | -6/Factory | Evolved 2 slots: Power x1, Propulsion x1 4976 | -6/Factory | Discovered new exit (range 22) 5279 | -6/Factory | Discovered new exit (range 21) 5330 | -6/Factory | Identified exit to Lower Caves 5330 | -6/Factory | Identified exit to Extension 5352 | -6/Factory | Entered Lower Caves 5658 | -6/Lower Caves | Discovered new exit (range 14) 5664 | -6/Lower Caves | Identified exit to Lower Caves 5664 | -6/Lower Caves | Entered another Lower Caves area 5666 | -6/Lower Caves | Discovered new exit (range 8) 5668 | -6/Lower Caves | Identified exit to Factory 5719 | -6/Lower Caves | Learned location of 1 exit from Factory 5774 | -6/Lower Caves | Discovered new exit (range 6) 5775 | -6/Lower Caves | Identified exit to Zion 5780 | -6/Lower Caves | Entered Zion 5793 | -6/Zion | Discovered new exit (range 12) 5804 | -6/Zion | Identified exit to Proximity Caves 5861 | -6/Zion | Gained Derelict followers 5944 | -6/Zion | Rebuked by Imprinter 5956 | -6/Zion | Build established: Sprinter 6183 | -6/Zion | Entered Proximity Caves 6183 | -5/Proximity Caves | Accompanied by 6 allies 6511 | -5/Proximity Caves | Lost 5 allies 6559 | -5/Proximity Caves | Attracted the attention of an 0b10 base 6559 | -5/Proximity Caves | Spotted B-75 Beast 6576 | -5/Proximity Caves | Discovered exit to Factory (range 21) 6582 | -5/Proximity Caves | Learned location of 1 exit from Upper Caves 6586 | -5/Proximity Caves | Entered Factory 6586 | -5/Factory | Evolved 2 slots: Utility x2 6587 | -5/Factory | Identified exit to Upper Caves 6809 | -5/Factory | Lost 4 parts (1p3n) 7057 | -5/Factory | Sucked down chute 7057 | -5/Factory | Entered Waste 7058 | -5/Waste | Joined by Warlord forces that had cleared the area 7238 | -5/Waste | Discovered new exit (range 22) 7284 | -5/Waste | Build established: Hacker-Skirmisher 7290 | -5/Waste | Identified exit to Factory 7313 | -5/Waste | Entered Factory 7313 | -5/Factory | Accompanied by 20 allies 7536 | -5/Factory | Lost 3 allies 7724 | -5/Factory | Spotted B-75 Beast 7738 | -5/Factory | Build established: Hacker-Assassin 7777 | -5/Factory | Lost 5 allies 7777 | -5/Factory | Entered Upper Caves 7777 | -5/Upper Caves | Accompanied by 2 allies 7778 | -5/Upper Caves | Identified exit to Upper Caves 7922 | -5/Upper Caves | Entered an active Warlord outpost 7944 | -5/Upper Caves | Learned 8 Factory zone layouts 7944 | -5/Upper Caves | Learned Factory terminal intel 7944 | -5/Upper Caves | Learned Extension garrison access intel 7946 | -5/Upper Caves | A Commander dispatched an escort 8024 | -5/Upper Caves | Attracted the attention of an 0b10 outpost 8071 | -5/Upper Caves | Lost 3 allies 8085 | -5/Upper Caves | Build established: Hacker-Mutant 8718 | -5/Upper Caves | Entered another Upper Caves area 8727 | -5/Upper Caves | Discovered new exit (range 15) 8739 | -5/Upper Caves | Identified exit to Factory 8829 | -5/Upper Caves | Identified exit to Warlord 9091 | -5/Upper Caves | Attracted the attention of an 0b10 checkpoint 9139 | -5/Upper Caves | Lost 3 parts (1p1n1w) 9176 | -5/Upper Caves | Learned Factory terminal intel 9214 | -5/Upper Caves | Entered Warlord 9279 | -5/Warlord | Discovered new exit (range 9) 9283 | -5/Warlord | Identified exit to Proximity Caves 9309 | -5/Warlord | System corruption cleaned by Quarantine Array 9422 | -5/Warlord | Learned Armory trap positions 9422 | -5/Warlord | Learned Research trap positions 9422 | -5/Warlord | Learned 4 Quarantine zone layouts 9422 | -5/Warlord | Learned 4 Command zone layouts 9423 | -5/Warlord | Learned Factory scanalyzer intel 9423 | -5/Warlord | Learned Factory garrison access intel 9423 | -5/Warlord | Learned Armory terminal intel 9423 | -5/Warlord | Learned Armory fabricator intel 9541 | -5/Warlord | Warlord's base attacked by MAIN.C 9583 | -5/Warlord | Met Warlord 9839 | -5/Warlord | Opened side exit 9852 | -5/Warlord | Entered Proximity Caves 9906 | -4/Proximity Caves | Core integrity fell below 50% 9936 | -4/Proximity Caves | Core integrity fell below 20% 9955 | -4/Proximity Caves | Lost 7 parts (2p2n1u2w) 9984 | -4/Proximity Caves | Learned location of Armory (-3) 10069 | -4/Proximity Caves | Destroyed by H-77 Assassin with Coil Gun Last Messages --------------- in Cogmind's advanced.cfg file, the functionality of which is described in the manual under Advanced UI: Advanced Options. Searching scrap... Found Nuclear Pulse Thruster. Found 64 Matter. Acquired Nuclear Pulse Thruster. Acquired 10 matter. Searching scrap... Found Matter Compressor. Found Hvy. Beamcaster. Found Adv. Field Recycling Unit. Found Hcp. Storage Unit. Found 54 Matter. Acquired Hvy. Beamcaster. Nuclear Pulse Thruster destroyed. Sml. Storage Unit destroyed. Slug penetrates S-27 Virus. S-27 Virus destroyed. Slug penetrates Wall. Map ----- +----------------------------------------------------+ | | | ?????????????????????????????????????????????????? | | ?????????????????????????????????????????????????? | | ?????????????????????????????????????????????????? | | ?????????????????????????????????????????????????? | | ?????????????????????????????????????????????????? | | ?????????????????????????????????????????????????? | | ?????????????????????????????????????????????????? | | ?????????????????????????????????????????????????? | | ?????????????????????????????????????????????????? | | ?????????????????????????????????????????????????? | | ?????????????????????????????????????????????????? | | ?????????????????????????????????????????????????? | | ?????????????????????????????????????????????????? | | ?????????????????????????????????????????????????? | | ?????????????????????????????????????????????????? | | ????????#####????????????????????????????????????? | | ???????? #????????????????????????????????????? | | ????????? #??????????##????????#???????????????? | | ?????????# #??????????? ???#### ##??????????????? | | ?????????# #??????????? ### ###????????????? | | ???????### #???######?? ##???????????? | | ???????# ##??# ##? #???????????? | | # #### ! #### ### ????????????? | | %! !![## #?????????????????? | | ##### ! # *%* @ #?????????????????? | | ????????## ##### =shss #?????????????????? | | ?????????## #??# ## s #????????????? | | ??????????## #??# #### h ????????? | | ???????????## ######??# $ ?????? | | ????????????# ###??## ######## ????? | | ????????????# #????# #??????????????? | | ????????????# ##????## ##??????????????? | | ????????????# #?????? #???????????????? | | ????????????# #??????? ??????????????? | | ????????????# ### #??????? ?????????????? | | # ?????????####?# ##???????? ????????????? | | # ????## #??# ###????????? ???????????? | | # ## ### #???????????? ##??????????? | | ?# #???????????? ####???????????? | | ??????# ##????????????##??????????????? | | ??????## ### #????????????????????????????? | | ???????# ?????## #????????????????????????????? | | ???????????????# #????????????????????????????? | | ???????????????# #????????????????????????????? | | ???????????????# ##???????????????????????????? | | ????????????#### #???????????????????????????? | | ???????????## ##???????????????????????????? | | ???????????# ##????????????????????????????? | | ???????????# #?????####????????????????????? | +----------------------------------------------------+ Best States ------------- Heat Dissipation 41 Energy Generation 29 Energy Capacity 375 Matter Stores 300 Matter Capacity 300 Sight Range 22 Terrain Scan Range 16 Terrain Scan Density 10 ECM Strength 1 Corruption Containment 8 Evasion (%) 65 Targeting Accuracy 8 Recoil Reduction 2 Offensive Hacking 20 Item Schematics ----------------- Battle Cannon | -6/Zion | Free Robot Schematics ------------------ None Fabricated ------------ Nothing Repaired ---------- Nothing Studied --------- Flight Unit | -8/Materials | Hacked Lgt. Ion Engine | -8/Materials | Hacked Lgt. Nuclear Core | -8/Materials | Hacked Rocket Launcher | -8/Materials | Hacked Alien Tech Used ----------------- None Achievements -------------- A Powerful Ally? Adventurer Explorer Factory Defaults Knowing Is Half The Battle Release The Drones! Satisfying Universal Adapter We Are Legion Challenges ------------ None Game ------ Seed ArcsightDimensionalInjector Manual? 0 Play Time 04:03:36 Cumulative 42.3 hours Start 2026.09.13 @ 16:09:10 End 2026.09.13 @ 21:23:10 Sessions 5 Manual Loads 0 Difficulty Rogue Special Mode None Game No. 22 Rogue 22 Adventurer 0 Explorer 0 Win Type - Total 0 Types 0/0/0/0/0/0/0/0/0/0 Lore% 33 Gallery% 21 Achievement% 22 Wizard Run 0 Options --------- Layout 1 ASCII 0 Keyboard 0 Movement Numpad Keybinds 0 Fullscreen 1 Font 32/SmallcapsGlow Map View 50x40 Zoom Use 0% Tactical HUD 0 Map Filters NONE Filters NONE Steam 1 RUN: e1815659-30f9-4be7-ac28-6c4030670e2d